Cogmind - Beta 10.2 @@@ ROGUE MODE // 2021.01.30 @ 19:53:36 Player: sentrybuster Result: Self-destructed Performance ------------- Evolutions (2) 1000 Regions Visited (4) 800 Robots Destroyed (35) 175 Value Destroyed (743) 743 Prototype IDs (3) 60 Alien Tech Used (0) 0 Bonus (78) 78 TOTAL SCORE: 2856 Bonus ------- High Alert Combat Kills 78 Cogmind --------- Core Integrity 443/550 Matter 151/300 Energy 98/100 System Corruption 0% Temperature Cool (0) Movement Walking (120) Location -8/Materials Parts ------- > --- POWER (1) -------- (None) > --- PROPULSION (3) --- Carbon-fiber Leg > --- UTILITY (4) ------ Heat Sink Improved Heat Sink Medium Storage Unit Integration Mediator > --- WEAPON (3) ------- Mini Grenade Launcher > --- INVENTORY (8) ---- Light Treads Advanced Treads EM Pulse Cannon EM Pulse Cannon Mini Grenade Launcher Improved Datajack Peak State ------------ > --- POWER ------------ Ion Engine > --- PROPULSION ------- Aluminum Leg Carbon-fiber Leg Aerolev Unit > --- UTILITY ---------- Heat Sink Improved Heat Sink Small Storage Unit Integration Mediator > --- WEAPON ----------- Beam Rifle EM Pulse Cannon Heavy Assault Rifle > --- INVENTORY -------- Light Treads Advanced Treads EM Pulse Cannon Mini Grenade Launcher Mini Grenade Launcher Improved Datajack [Rating: 24] Favorites ----------- Power Light Ion Engine Engine Light Ion Engine Propulsion Aluminum Leg Treads Advanced Treads Leg Aluminum Leg Hover Unit Aerolev Unit Flight Unit Improved VTOL Module Utility Small Storage Unit Device Heat Sink Storage Small Storage Unit Protection Propulsion Shielding Weapon Light Assault Rifle Energy Gun EM Pulse Gun Energy Cannon EM Pulse Cannon Ballistic Gun Light Assault Rifle Launcher Grenade Launcher Special Weapon Welding Torch Build | -11 -10 -9 -9 -8 ------- Run | Scr Mat Mat Min Mat Slots Evolved 4 | . . 2 . 2 Power . | . . . . . Propulsion 1 | . . . . 1 Utility 2 | . . 1 . 1 Weapon 1 | . . 1 . . Parts Attached 39 | 6 3 9 2 19 Power 2 | 1 . . . 1 Engine 2 | 1 . . . 1 Core . | . . . . . Reactor . | . . . . . Propulsion 9 | 2 . . . 7 Treads 1 | . . . . 1 Leg 6 | 2 . . . 4 Wheel . | . . . . . Hover 1 | . . . . 1 Flight 1 | . . . . 1 Utility 8 | 1 1 3 . 3 Device 5 | . 1 2 . 2 Storage 2 | 1 . . . 1 Processor . | . . . . . Hackware . | . . . . . Protection 1 | . . 1 . . Artifact . | . . . . . Weapon 20 | 2 2 6 2 8 Energy Gun 6 | 1 . 2 1 2 Energy Cannon 1 | . . . . 1 Ballistic Gun 7 | 1 1 2 . 3 Ballistic Cannon . | . . . . . Launcher 5 | . . 2 1 2 Special Weapon 1 | . 1 . . . Impact Weapon . | . . . . . Slashing Weapon . | . . . . . Piercing Weapon . | . . . . . Special Melee Weapon . | . . . . . Unidentified Prototypes 3 | . . . . 3 Parts Lost 11 | . . 1 . 10 Power 1 | . . . . 1 Propulsion 4 | . . . . 4 Utility 1 | . . . . 1 Weapon 5 | . . 1 . 4 Highest Loss Streak 5 | . . 1 . 5 Average Slot Usage (%) 94 | . 94 100 100 92 Engine 10 | . 14 11 11 9 Treads 1 | . . . . 2 Leg 23 | . 28 22 22 21 Device 19 | . 9 20 22 23 Storage 10 | . 14 11 11 9 Energy Gun 15 | . 14 27 22 12 Energy Cannon 2 | . . . . 3 Ballistic Gun 7 | . 11 4 4 8 Launcher 1 | . . . 6 1 Naked Turns . | . . . . . Heaviest Build 29 | 10 11 15 15 29 Greatest Support 35 | 20 20 20 20 35 Greatest Overweight (x) 3 | 3 . . . 1 Average Overweight (x) . | . . . . . Largest Inventory Capacity 8 | 6 6 6 6 8 Average Capacity 6 | 5 6 6 6 6 Most Carried 6 | 4 6 6 5 6 Average Carried 5 | 1 5 5 5 5 Final Capacity 8 | 6 6 6 6 8 Final Carried 6 | 4 6 6 5 6 Class Distribution -------------------- 28% | Skirmisher 28% | Mutant 28% | Scavenger-Gunner 14% | Gunner Dominant Class ---------------- Mutant | -10/Materials Skirmisher | -9/Materials Skirmisher | -9/Mines Scavenger-Gunner | -8/Materials Resources | -11 -10 -9 -9 -8 ----------- Run | Scr Mat Mat Min Mat Matter Collected 583 | 233 39 22 . 289 Remotely . | . . . . . Salvage Created 812 | . 44 36 . 732 Parts 76 | . 3 13 . 60 Haulers Intercepted 3 | . . . . 3 Recyclers Shooed 1 | . . . . 1 Parts Field Recycled . | . . . . . Retrieved Matter . | . . . . . Parts Self-Destructed . | . . . . . Prevented . | . . . . . Kills | -11 -10 -9 -9 -8 ------- Run | Scr Mat Mat Min Mat Combat Hostiles Destroyed 24 | . 1 6 . 17 Guns 8 | . 1 1 . 6 AOE 16 | . . 5 . 11 Classes Destroyed 8 | . 1 1 . 6 Worker 2 | . . . . 2 Builder 2 | . . . . 2 Hauler 3 | . . . . 3 Recycler 1 | . . . . 1 Operator 3 | . . . . 3 Swarmer 13 | . . 6 . 7 Grunt 8 | . 1 . . 7 Sentry 3 | . . . . 3 Best Kill Streak 11 | . 1 3 . 11 Combat Bots Only 9 | . 1 3 . 9 Max Kills in Single Turn 4 | . 1 3 . 4 Gunslinging . | . . . . . Exploded 3 | . . 2 . 3 Melee . | . . . . . Uniques/NPCs Destroyed . | . . . . . Combat | -11 -10 -9 -9 -8 -------- Run | Scr Mat Mat Min Mat Damage Taken 1063 | . 11 116 . 936 Core 121 | . . 14 . 107 Absorbed by Shields . | . . . . . Core Remaining (%) 98 | 100 100 . 96 . Volleys Fired 51 | . 6 3 . 42 Largest 3 | . 2 3 . 3 Hottest 142 | . 70 120 . 142 Shots Fired 131 | . 8 9 . 114 Gun 100 | . 4 6 . 90 Cannon 11 | . . . . 11 Launcher 16 | . . 3 . 13 Special 4 | . 4 . . . Kinetic 40 | . 2 . . 38 Thermal 49 | . 6 5 . 38 Explosive 16 | . . 3 . 13 Electromagnetic 26 | . . 1 . 25 Robot Hit Streak 16 | . 4 2 . 16 Robot Miss Streak 5 | . . 5 . 4 Penetration Max . | . . . . . Secondary Targets . | . . . . . Shots Hit Robots 76 | . 4 2 . 70 Core Hits 53 | . 2 7 . 44 Critical Hits . | . . . . . Critical Kills . | . . . . . Critical Parts Destroyed . | . . . . . Melee Attacks . | . . . . . Impact . | . . . . . Slashing . | . . . . . Piercing . | . . . . . Sneak Attacks . | . . . . . Combat Hostiles . | . . . . . Follow-up Attacks . | . . . . . Damage Inflicted 2259 | . 40 206 . 2013 Guns 727 | . 40 12 . 675 Cannons 217 | . . . . 217 Explosions 1315 | . . 194 . 1121 Melee . | . . . . . Ramming . | . . . . . Kinetic 227 | . 15 . . 212 Thermal 640 | . 25 . . 615 Explosive 1083 | . . 194 . 889 Electromagnetic 309 | . . 12 . 297 Impact . | . . . . . Slashing . | . . . . . Piercing . | . . . . . Highest Corruption . | . . . . . Average Corruption . | . . . . . Corruption Purged . | . . . . . Overload Shots . | . . . . . Overflow Damage 51 | . . . . 51 Projectiles . | . . . . . Explosions 51 | . . . . 51 Melee . | . . . . . Knockbacks . | . . . . . Impact . | . . . . . Kinetic . | . . . . . Secondary . | . . . . . Self-Inflicted Damage 100 | . . . . 100 Shots 3 | . . . . 3 Rammed . | . . . . . Targets Rammed . | . . . . . Kicked . | . . . . . Crushed . | . . . . . Highest Temperature 102 | . 46 102 . 30 Average Temperature 21 | . 25 44 . 10 Received Heat Transfer 309 | . 6 24 . 279 Siege Activations . | . . . . . Robots Corrupted . | . . . . . Combat Hostiles . | . . . . . Parts Fried 1 | . . . . 1 Impact Corruptions . | . . . . . Robots Melted . | . . . . . Combat Hostiles . | . . . . . Parts Melted 1 | . . . . 1 Heat Transferred 1187 | . 74 . . 1113 Parts Sabotaged . | . . . . . Parts Stolen . | . . . . . Parts Stripped . | . . . . . Power Chain Reactions 2 | . . . . 2 Missiles Intercepted . | . . . . . Alert | -11 -10 -9 -9 -8 ------- Run | Scr Mat Mat Min Mat Peak Influence 606 | . 78 202 74 606 Initial 74 | . . 32 74 28 Average 237 | . 41 131 74 406 Maximum Alert Level 2 | . . 1 . 2 Low Security (%) 51 | 100 100 78 100 9 Level 1 17 | . . 21 . 29 Level 2 30 | . . . . 60 Level 3 . | . . . . . Level 4 . | . . . . . Level 5 . | . . . . . High Security . | . . . . . Max Security . | . . . . . Squads Dispatched 4 | . 2 . . 2 Investigation 1 | . 1 . . . Extermination . | . . . . . Reinforcement 2 | . 1 . . 1 Assault . | . . . . . Garrison 1 | . . . . 1 Intercept . | . . . . . Construction Impeded . | . . . . . Haulers Reinforced . | . . . . . Stealth | -11 -10 -9 -9 -8 --------- Run | Scr Mat Mat Min Mat Distress Signals 2 | . . 1 . 1 Communications Jammed . | . . . . . Distress Signals . | . . . . . Times Spotted 44 | . 3 11 . 30 Peak Tracking Total 7 | . 1 7 . 5 Tactical Retreats 2 | . . 2 . . Traps | -11 -10 -9 -9 -8 ------- Run | Scr Mat Mat Min Mat Traps Triggered 1 | . 1 . . . Indirectly . | . . . . . Trap Hack Attempts . | . . . . . Triggered . | . . . . . Disarmed . | . . . . . Reprogrammed . | . . . . . Reused . | . . . . . Traps Extracted . | . . . . . Installed . | . . . . . Triggered . | . . . . . Machines | -11 -10 -9 -9 -8 ---------- Run | Scr Mat Mat Min Mat Machines Disabled 4 | . . . . 4 Max in Single Turn 1 | . . . . 1 Machines Sabotaged . | . . . . . Garrisons Compromised . | . . . . . Overloaded Fab Kills . | . . . . . Fab Network Shutdowns . | . . . . . Hacking | -11 -10 -9 -9 -8 --------- Run | Scr Mat Mat Min Mat Machines Accessed 3 | . 2 . . 1 Terminals 1 | . 1 . . . Fabricators . | . . . . . Repair Stations . | . . . . . Recycling Units 2 | . 1 . . 1 Scanalyzers . | . . . . . Garrison Access . | . . . . . Total Hacks 8 | . 7 . . 1 Successful 4 | . 3 . . 1 Failed 4 | . 4 . . . Catastrophic 1 | . 1 . . . Database Lockouts . | . . . . . Manual 4 | . 4 . . . Terminals 5 | . 5 . . . Fabricators . | . . . . . Repair Stations . | . . . . . Recycling Units 3 | . 2 . . 1 Scanalyzers . | . . . . . Garrison Access . | . . . . . Terminal Hacks 2 | . 2 . . . Emergency Access Points 1 | . 1 . . . Zone Layout 1 | . 1 . . . Fabricator Hacks . | . . . . . Repair Station Hacks . | . . . . . Recycling Unit Hacks 1 | . . . . 1 Retrieve Components 1 | . . . . 1 Scanalyzer . | . . . . . Garrison Access Hacks . | . . . . . Unauthorized Hacks 1 | . 1 . . . Terminals 1 | . 1 . . . Track 1 | . 1 . . . Fabricators . | . . . . . Repair Stations . | . . . . . Recycling Units . | . . . . . Scanalyzers . | . . . . . Garrison Access . | . . . . . Data Cores Recovered . | . . . . . Used . | . . . . . Hacking Detections 2 | . 2 . . . Full Trace Events . | . . . . . Feedback Events . | . . . . . Feedback Blocked . | . . . . . Robot Schematics Acquired . | . . . . . Robots Built . | . . . . . Matter . | . . . . . Time . | . . . . . Total Robot Build Rating . | . . . . . Part Schematics Acquired . | . . . . . Parts Built . | . . . . . Matter . | . . . . . Time . | . . . . . Total Part Build Rating . | . . . . . Parts Repaired . | . . . . . Time . | . . . . . Parts Recycled . | . . . . . Recycled Matter . | . . . . . Retrieved Matter . | . . . . . Retrieved Components 5 | . . . . 5 Parts Scanalyzed . | . . . . . Part Schematics Acquired . | . . . . . Parts Damaged . | . . . . . Bothacking | -11 -10 -9 -9 -8 ------------ Run | Scr Mat Mat Min Mat Used RIF Installer . | . . . . . Robots Hacked . | . . . . . Non-combat . | . . . . . Combat . | . . . . . Robot Hacks Applied . | . . . . . Relay Couplers Released . | . . . . . Robots Rewired . | . . . . . Allies Hacked . | . . . . . Hacks Repelled . | . . . . . Allies | -11 -10 -9 -9 -8 -------- Run | Scr Mat Mat Min Mat Total Allies . | . . . . . Largest Group . | . . . . . Highest-Rated Group . | . . . . . Highest-Rated Ally . | . . . . . Total Orders . | . . . . . Ally Attacks . | . . . . . Total Damage . | . . . . . Kills . | . . . . . Allies Corrupted . | . . . . . Allies Melted . | . . . . . Intel | -11 -10 -9 -9 -8 ------- Run | Scr Mat Mat Min Mat Robot Analysis Total . | . . . . . Derelict Logs Recovered . | . . . . . Drone Launches . | . . . . . Drone Recoveries . | . . . . . Exploration | -11 -10 -9 -9 -8 ------------- Run | Scr Mat Mat Min Mat Turns Passed 895 | 55 182 128 82 448 Spaces Moved 549 | 37 134 87 66 225 Core 9 | 9 . . . . Treads . | . . . . . Legs 540 | 28 134 87 66 225 Wheels . | . . . . . Hover . | . . . . . Flight . | . . . . . Fastest Speed 50 | 50 120 120 120 120 Average Speed 120 | 115 120 120 120 121 Slowest Speed 200 | 200 120 120 120 150 Overloaded Moves . | . . . . . Propulsion Burnouts . | . . . . . Robots Hopped . | . . . . . Cave-ins Triggered . | . . . . . Exploration Rate (%) 18 | 3 33 14 18 25 Regions Visited 4 Branch Regions 1 Pre-discovered Areas . | . . . . . Known Exits Taken . | . . . . . Unknown Exits Taken 4 | 1 1 1 1 . Scrap Searched . | . . . . . Spaces Dug . | . . . . . Terrain Destroyed 117 | . . 16 . 101 Melee . | . . . . . Projectile . | . . . . . AOE 117 | . . 16 . 101 Terrain Rammed . | . . . . . Walls Destroyed . | . . . . . Machines Disabled . | . . . . . Actions | -11 -10 -9 -9 -8 --------- Run | Scr Mat Mat Min Mat Total 674 | 46 146 102 68 312 Wait 9 | . . . 1 8 Move 545 | 36 133 86 65 225 Hop . | . . . . . Pick Up 11 | 4 2 1 . 4 Fast Attach 24 | 6 3 2 . 13 Attach 7 | . . 2 1 4 Detach 5 | . . 2 . 3 Swap 9 | . . 5 1 3 Drop 13 | . 2 1 . 10 Fire 51 | . 6 3 . 42 Melee . | . . . . . Ram . | . . . . . Kick . | . . . . . Crush . | . . . . . Escape Stasis . | . . . . . Rewire . | . . . . . Trap . | . . . . . Miscellaneous . | . . . . . Route ------- -11/Scrapyard -10/Materials -9/Materials -9/Mines -8/Materials History --------- Turn | Location | Event 19 | -11/Scrapyard | Discovered new exit (range 16) 56 | -11/Scrapyard | Entered Materials 224 | -10/Materials | Discovered new exit (range 13) 238 | -10/Materials | Entered another Materials area 238 | -9/Materials | Evolved 2 slots: Utility x1, Weapon x1 321 | -9/Materials | Discovered new exit (range 15) 366 | -9/Materials | Entered Mines 391 | -9/Mines | Assembled infested the area 396 | -9/Mines | Assisted by a Guerilla fighting off Assembled 437 | -9/Mines | Discovered new exit (range 10) 448 | -9/Mines | Entered Materials 448 | -8/Materials | Evolved 2 slots: Propulsion x1, Utility x1 527 | -8/Materials | Destroyed 7 combat bots 684 | -8/Materials | Lost 3 parts (1n2w) 708 | -8/Materials | Destroyed 9 combat bots 872 | -8/Materials | Garrison activated, responded to threat 896 | -8/Materials | Self-destructed Last Messages --------------- 00879_ K-01 Serf collects debris. 00886_ K-01 Serf destroyed. 00886_ U-05 Engineer destroyed. 00887_ K-01 Serf cleans the Electrolysis Chamber. 00888_ Beam Rifle destroyed. 00890_ U-05 Engineer lays Concrete. 00893_ Ion Engine destroyed. 00893_ Destroyed Ion Engine. 00893_ Aluminum Leg destroyed. 00893_ Destroyed Aluminum Leg. 00893_ Destroyed Flight Unit. 00893_ Electrolysis Chamber disabled. 00893_ K-01 Serf cleans the Electrolysis Chamber. 00893_ U-05 Engineer lays Concrete. 00894_ Hvy. Assault Rifle destroyed. 00894_ Aluminum Leg destroyed. 00894_ U-05 Engineer lays Concrete. 00895_ K-01 Serf collects debris. 00895_ U-05 Engineer lays Concrete. 00896_ The unstable cave ceiling collapses. Map ----- +----------------------------------------------------+ | ?????????????????????????????????????????????????? | | ?????????????????????????????????????????????????? | | ?????????????????????????????????????????????????? | | ?????????????????????????????????????????????????? | | ?????????????????????????????????????????????????? | | ?????????????????????????????????????????????????? | | ?????????????????????????????????????????????????? | | ??????????????????????##?????????????????????????? | | ?????????????????????? T ??????????????????????? | | ?????????????????????? ??????????????????????? | | ????????????????????? ??????????????????????? | | ?????????????????????# ??????????????????????? | | ?????#######?????????# ??????????????????????? | | ?????# ?????????# ??? ##????????????????? | | ####?# "?????????# ^ ? T#????????????????? | | #?# """???????# """ #?????????????????? | | ### """#??????#[!k""" #?????????????????? | | ## """#??????#[[ """ ###???????????????? | | ### ! """#??????#%[= """???????????????? | | ## #??????#[[ G"???????????????? | | #? ####???#=! """ ""????????????????? | | #? #?# Yk""" #?????????????????? | | +######/#### # # " " #######???????????? | | % k * w ?????????? | | u*=* Y ###??????????????? | | !% % s @ #????????????????? | | +####### ##= # ######????????????????? | | #??# !!##?# ## ####?????????????????????? | | #??# !#?# ###?????????????????????????? | | *"" #??# !#?# #???????????????????????????? | | *Y" #??# !#?# #???????????????????????????? | | "" #??# !#?# #???????????????????????????? | | #??# !!##?# #???????????????????????????? | | ##########+####??# #???????????????????????????? | | ! ==*!#?????# #???????????????????????????? | | """ != =!#?????# #???????????????????????????? | | "R" """ #?????# #???????????????????????????? | | " " """ #????? ! ???????????????????????????? | | """ #????? ????????????????????????????? | | ! #?????? ????????????????????????????? | | ############?????????????????????????????????????? | | ???????????????????????????????????? | | ######??????????????????????????????????????????? | | ##???????????????????????????????????????????????? | | #???????????????????????????????????????????????? | | #???????????????????????????????????????????????? | | #???????????????????????????????????????????????? | | #???????????????????????????????????????????????? | | #???????????????????????????????????????????????? | | #???????????????????????????????????????????????? | +----------------------------------------------------+ Best States ------------- Heat Dissipation 55 Energy Generation 10 Energy Capacity 250 Matter Stores 300 Matter Capacity 300 Sight Range 16 Terrain Scan Range 14 Terrain Scan Density 10 Propulsion Shielding 33 Evasion (%) 40 Recoil Reduction 1 Item Schematics ----------------- None Robot Schematics ------------------ None Fabricated ------------ Nothing Alien Tech Used ----------------- None Achievements -------------- None Challenges ------------ None Game ------ Seed GravmagScanKit Manual? 0 Play Time 00:24:51 Cumulative 121.4 hours Start 2021.01.30 @ 19:21:40 End 2021.01.30 @ 19:53:36 Sessions 1 Manual Loads 0 Difficulty Rogue Special Mode None Game No. 222 Rogue 218 Adventurer 0 Explorer 4 Win Type - Total 0 Types 0/0/0/0/0/0/0/0/0 Lore% 63 Gallery% 72 Achievement% 48 Wizard Run 0 Options --------- ASCII 1 Keyboard 1 Movement Numpad Keybinds 0 Fullscreen 1 Font 18/X11Bold Map View 76x50 Tactical HUD 1 Map Filters NONE Filters NONE Steam 1 RUN: e216ada6-c642-4504-b8ce-0b04134858f3